bitfinex/quotes_BTCUSD_20240820
["timestamp","ask_amount","ask_price","bid_price","bid_amount"]
[1724136732708,1.46089839,61109.0,61108.0,0.0031717]
[1724136732709,1.45389839,61109.0,61108.0,0.0031717]
[1724136732860,1.45289839,61109.0,61108.0,0.0051717]
[1724136733267,1.45289839,61109.0,61108.0,0.0041717]
[1724136733268,1.44589839,61109.0,61108.0,0.0041717]
[1724136733797,0.007827,61109.0,61108.0,0.0699717]
[1724136734046,0.007827,61109.0,61108.0,0.1688157]
[1724136734317,0.007827,61109.0,61108.0,1.1842827]
[1724136734550,0.007827,61109.0,61108.0,0.9227937]
[1724136735721,0.007827,61109.0,61108.0,0.8881937]
[1724136735966,0.000827,61109.0,61108.0,0.8871937]
[1724136736371,0.000827,61109.0,61108.0,0.4951047]
[1724136737578,0.010827,61109.0,61108.0,0.4961047]
[1724136738817,0.000827,61109.0,61108.0,0.4951047]
[1724136739232,0.007827,61109.0,61108.0,0.4961047]
[1724136744762,0.007827,61109.0,61108.0,0.1688157]
[1724136744979,0.007827,61109.0,61108.0,0.4961047]
[1724136746417,0.073527,61109.0,61108.0,0.0051717]
[1724136747077,0.56745228,61109.0,61108.0,0.0051717]
[1724136747281,0.97223628,61109.0,61108.0,0.0051717]
[1724136747490,1.29852028,61109.0,61108.0,0.0051717]
[1724136747694,1.296521,61109.0,61108.0,0.0051717]
[1724136749624,0.969237,61109.0,61108.0,0.0051717]
[1724136749831,0.903537,61109.0,61108.0,0.0051717]
[1724136750234,0.826037,61109.0,61108.0,0.0051717]
[1724136752410,0.908337,61109.0,61108.0,0.0051717]
[1724136752622,0.969837,61109.0,61108.0,0.0051717]
[1724136755836,1.297121,61109.0,61108.0,0.0051717]
[1724136756063,1.301121,61109.0,61108.0,0.0051717]
[1724136756701,1.30412028,61109.0,61108.0,0.0051717]
[1724136757755,0.163658,61103.0,61100.0,0.1441464]
[1724136757958,0.244558,61103.0,61100.0,0.1441464]
[1724136759076,0.0819,61103.0,61100.0,0.1521464]
[1724136759660,0.245558,61103.0,61100.0,0.1521464]
[1724136759888,0.245558,61103.0,61100.0,0.008]
[1724136760068,0.245558,61103.0,61100.0,0.171665]
[1724136761215,0.245558,61103.0,61100.0,0.163665]
[1724136761216,0.244558,61103.0,61100.0,0.163665]
[1724136761644,0.0809,61103.0,61100.0,0.163665]
[1724136761893,0.003,61103.0,61100.0,0.169665]
[1724136762106,0.00192,61103.0,61100.0,0.163665]
[1724136762340,0.163655,61104.0,61100.0,0.163665]
[1724136762570,0.001,61103.0,61100.0,0.1705747]
[1724136762791,0.003,61103.0,61100.0,0.1645747]
[1724136763047,0.003,61103.0,61100.0,0.1705747]
[1724136763292,0.002,61103.0,61100.0,0.1705747]
[1724136763467,0.002,61103.0,61100.0,0.1645747]
[1724136763468,0.003,61103.0,61100.0,0.1645747]
[1724136763728,0.003,61103.0,61100.0,0.1705747]
[1724136764973,0.163659,61103.0,61100.0,0.1645747]
[1724136765180,0.164659,61103.0,61100.0,0.0077067]
[1724136765386,0.165659,61103.0,61100.0,0.0077067]
[1724136765589,0.165659,61103.0,61100.0,0.1713717]
[1724136766450,0.227959,61103.0,61100.0,0.1713717]
[1724136768972,0.163661,61102.0,61100.0,0.0077067]
[1724136769182,0.0831,61101.0,61100.0,0.0077067]
[1724136769776,0.246763,61101.0,61100.0,0.0077067]
[1724136769944,0.246763,61101.0,61100.0,0.0007067]
[1724136770346,0.574089,61101.0,61100.0,0.0007067]
[1724136770560,0.962615,61101.0,61100.0,0.0007067]
[1724136771399,0.963615,61101.0,61100.0,0.0097067]
[1724136771604,0.962615,61101.0,61100.0,0.0007067]
[1724136772107,0.969615,61101.0,61100.0,0.0027067]
[1724136772311,0.969615,61101.0,61100.0,0.0017067]
[1724136772466,0.962615,61101.0,61100.0,0.0007067]
[1724136772670,0.962615,61101.0,61100.0,0.0017067]
[1724136772944,0.969615,61101.0,61100.0,0.0027067]
[1724136773871,0.970615,61101.0,61100.0,0.0027067]
[1724136774203,0.97261428,61101.0,61100.0,0.0027067]
[1724136775062,0.96561428,61101.0,61100.0,0.0017067]
[1724136775242,0.96461428,61101.0,61100.0,0.0017067]
[1724136775440,0.96461428,61101.0,61100.0,0.0027067]
[1724136775441,0.97161428,61101.0,61100.0,0.0027067]
[1724136775639,0.969615,61101.0,61100.0,0.0027067]
[1724136775915,0.969615,61101.0,61100.0,0.0017067]
[1724136776350,0.969615,61101.0,61100.0,0.0027067]
[1724136781568,0.973615,61101.0,61100.0,0.0027067]
[1724136781996,0.011,61101.0,61100.0,0.2009727]
[1724136782209,0.011,61101.0,61100.0,0.0373067]
[1724136783086,0.011,61101.0,61100.0,0.1663727]
[1724136783507,0.011,61101.0,61100.0,0.4937047]
[1724136794761,0.318663,61101.0,61100.0,0.0027067]
[1724136794970,0.155,61101.0,61100.0,0.0027067]
[1724136795215,0.318663,61101.0,61100.0,0.0027067]
[1724136795426,0.319663,61101.0,61100.0,0.0027067]
[1724136796993,0.318663,61101.0,61100.0,0.0027067]
[1724136797897,0.317663,61101.0,61100.0,0.0027067]
[1724136799152,0.317703,61101.0,61100.0,0.0027067]
[1724136799731,0.645029,61101.0,61100.0,0.0027067]
[1724136800393,0.645856,61101.0,61100.0,0.0027067]
[1724136801218,0.973182,61101.0,61100.0,0.0027067]
[1724136801441,0.645856,61101.0,61100.0,0.0027067]
[1724136812010,1.13635939,61101.0,61100.0,0.0027067]
[1724136812234,1.13735939,61101.0,61100.0,0.0027067]
[1724136812607,1.13935867,61101.0,61100.0,0.0027067]
[1724136814489,1.13635939,61101.0,61100.0,0.0027067]
[1724136818496,1.13735939,61101.0,61100.0,0.0027067]
[1724136818707,1.13935867,61101.0,61100.0,0.0027067]
[1724136820161,0.645856,61101.0,61100.0,0.0027067]
[1724136820363,0.583656,61101.0,61100.0,0.0027067]
[1724136820583,0.25633,61101.0,61100.0,0.0027067]
[1724136822696,0.583656,61101.0,61100.0,0.0027067]
[1724136833006,0.25633,61101.0,61100.0,0.0027067]
[1724136833191,0.092667,61101.0,61100.0,0.0027067]
[1724136834224,0.010867,61101.0,61100.0,0.0027067]
[1724136835004,0.010867,61101.0,61100.0,0.1663727]
[1724136836224,0.010867,61101.0,61100.0,0.0027067]
[1724136837701,0.010867,61101.0,61100.0,0.1663727]
[1724136838522,0.010867,61101.0,61100.0,0.0027067]
[1724136841341,0.087067,61101.0,61100.0,0.0027067]
[1724136841792,0.152967,61101.0,61100.0,0.0027067]
[1724136841992,0.267867,61101.0,61100.0,0.0027067]
[1724136845839,0.267867,61101.0,61099.0,0.163668]
[1724136846840,0.261867,61101.0,61099.0,0.163668]
[1724136847295,0.268867,61101.0,61099.0,0.164668]
[1724136847980,0.268867,61101.0,61099.0,0.001]
[1724136848396,0.0751,61100.0,61099.0,0.0019097]
[1724136849382,0.0751,61100.0,61099.0,0.0009097]
[1724136849583,0.0751,61100.0,61099.0,0.0019097]
[1724136849805,0.0811,61100.0,61099.0,0.0029097]
[1724136850352,0.0811,61100.0,61091.0,0.04912784]
[1724136850353,0.491062,61092.0,61091.0,0.04912784]
[1724136850568,0.63937,61091.0,61090.0,0.04912784]
[1724136850780,0.63937,61091.0,61085.0,0.14847052]
[1724136850781,0.56007628,61090.0,61085.0,0.02565091]
[1724136850983,1.20826799,61090.0,61085.0,0.02565091]
[1724136851204,1.60825945,61090.0,61076.0,0.49008666]
[1724136851407,1.60925945,61090.0,61076.0,0.0009097]
[1724136851610,1.61025895,61090.0,61076.0,0.0009097]
[1724136851796,1.73479494,61090.0,61076.0,0.0009097]
[1724136851938,1.63665299,61090.0,61076.0,0.0009097]
[1724136852146,1.71020556,61090.0,61076.0,0.0009097]
[1724136852709,1.68569022,61090.0,61076.0,0.0009097]
[1724136853081,1.56132367,61090.0,61076.0,0.0009097]
[1724136853283,1.57432367,61090.0,61076.0,0.0009097]
[1724136853681,1.58232367,61090.0,61089.0,0.0019086]
[1724136856555,0.988762,61090.0,61089.0,0.0019086]
[1724136856818,1.103662,61090.0,61089.0,0.0019086]
[1724136857330,1.10666128,61090.0,61089.0,0.0019086]
[1724136857625,1.104662,61090.0,61089.0,0.0019086]
[1724136858104,1.10666128,61090.0,61089.0,0.0019086]
[1724136858306,1.103662,61090.0,61089.0,0.0019086]
[1724136859146,1.10666128,61090.0,61089.0,0.0019086]
[1724136859564,1.103662,61090.0,61089.0,0.0019086]
[1724136859985,1.104662,61090.0,61089.0,0.0019086]
[1724136864187,1.10666128,61090.0,61089.0,0.0019086]
[1724136872080,1.103662,61090.0,61089.0,0.0019086]
[1724136875457,1.104662,61090.0,61089.0,0.0019086]
[1724136875910,1.103662,61090.0,61089.0,0.0019086]
[1724136876548,1.104662,61090.0,61089.0,0.0019086]
[1724136876987,1.103662,61090.0,61089.0,0.0019086]
[1724136877138,1.104662,61090.0,61089.0,0.0019086]
[1724136877644,1.10666128,61090.0,61089.0,0.0019086]
[1724136877850,1.103662,61090.0,61089.0,0.0019086]
[1724136878276,0.1043,61090.0,61089.0,0.0019086]
[1724136878481,0.022,61090.0,61089.0,0.0641086]
[1724136879445,0.1369,61090.0,61089.0,0.0641086]
[1724136879949,0.13694,61090.0,61089.0,0.0641086]
[1724136883480,0.02204,61090.0,61089.0,0.2278036]
[1724136883710,0.02204,61090.0,61089.0,1.2099766]
[1724136885240,0.01404,61090.0,61089.0,0.8815856]
[1724136885731,4e-05,61090.0,61089.0,0.8815856]
[1724136885967,4e-05,61090.0,61089.0,0.8845856]
[1724136886264,0.01404,61090.0,61089.0,0.8845856]
[1724136886472,0.01404,61090.0,61089.0,0.8815856]
[1724136886709,4e-05,61090.0,61089.0,0.8815856]
[1724136887169,0.00304,61090.0,61089.0,0.8855856]
[1724136889235,0.00304,61090.0,61089.0,1.08336299]
[1724136889440,0.00304,61090.0,61089.0,1.41075399]
[1724136890998,0.00304,61090.0,61089.0,0.9201856]
[1724136891197,0.00304,61090.0,61089.0,0.8855856]
[1724136891525,0.00304,61090.0,61089.0,0.8233856]
[1724136898395,0.00304,61090.0,61089.0,0.4959946]
[1724136898596,0.07814,61090.0,61089.0,0.4959946]
[1724136899001,0.07814,61090.0,61089.0,0.8233856]
[1724136899406,0.19304,61090.0,61089.0,0.1686036]
[1724136899609,0.25944,61090.0,61089.0,0.1686036]
[1724136900019,0.25944,61090.0,61089.0,0.4959946]
[1724136901456,0.25944,61090.0,61089.0,0.1686036]
[1724136902795,0.25944,61090.0,61089.0,0.0049086]
[1724136903866,0.423132,61090.0,61089.0,0.0049086]
[1724136904049,0.750517,61090.0,61089.0,0.0049086]
[1724136909765,0.423132,61090.0,61089.0,0.0049086]
[1724136912656,0.25944,61090.0,61089.0,0.0049086]
[1724136913870,1.077902,61090.0,61089.0,0.01646469]
[1724136914072,1.56946439,61090.0,61089.0,0.01646469]
[1724136914225,1.64481467,61090.0,61089.0,0.0049086]
[1724136914430,1.56946439,61090.0,61089.0,0.0049086]
[1724136914636,1.64753555,61090.0,61089.0,0.0049086]
[1724136914835,1.64453555,61090.0,61089.0,0.0049086]
[1724136915051,1.64653483,61090.0,61089.0,0.0049086]
[1724136915408,1.58317037,61090.0,61089.0,0.0049086]
[1724136915619,1.57117037,61090.0,61089.0,0.0049086]
[1724136916028,1.57117037,61090.0,61089.0,0.0009086]
[1724136916236,1.57717037,61090.0,61089.0,0.0019086]
[1724136916644,1.58917037,61090.0,61089.0,0.0009086]
[1724136916916,1.59417037,61090.0,61089.0,0.0019086]
[1724136917126,1.59517037,61090.0,61089.0,0.0019086]
[1724136917325,1.59617037,61090.0,61089.0,0.0019086]
[1724136918538,1.59417109,61090.0,61089.0,0.0019086]
[1724136918740,1.59617037,61090.0,61089.0,0.0019086]
[1724136919356,1.59417109,61090.0,61089.0,0.0019086]
[1724136919820,1.59617037,61090.0,61089.0,0.0019086]
[1724136923166,1.59417109,61090.0,61089.0,0.0019086]
[1724136926184,2.02355537,61090.0,61089.0,0.0019086]
[1724136926392,2.09893223,61090.0,61089.0,0.0019086]
[1724136929010,1.98403223,61090.0,61089.0,0.0019086]
[1724136929203,2.09693295,61090.0,61089.0,0.0019086]
[1724136929662,2.02155609,61090.0,61089.0,0.0019086]
[1724136933384,1.90865537,61090.0,61089.0,0.0019086]
[1724136933585,2.02355537,61090.0,61089.0,0.0019086]
[1724136935034,0.818542,61084.0,61083.0,0.00018576]
[1724136935235,1.17261939,61084.0,61083.0,0.00018576]
[1724136936267,1.17761939,61084.0,61083.0,0.00018576]
[1724136936507,1.23881939,61084.0,61083.0,0.00118576]
[1724136937281,1.23881939,61084.0,61083.0,0.00018576]
[1724136937907,1.23381939,61084.0,61083.0,0.00018576]
[1724136938057,1.23981939,61084.0,61083.0,0.00018576]
[1724136938282,0.612025,61084.0,61083.0,0.00018576]
[1724136938504,0.006,61084.0,61083.0,0.00018576]
[1724136938682,0.278601,61087.0,61084.0,0.163708]
[1724136938883,0.1149,61087.0,61085.0,0.0601]
[1724136939109,0.278604,61086.0,61083.0,0.06028576]
[1724136939517,0.819542,61084.0,61083.0,0.00018576]
[1724136939753,0.491125,61084.0,61083.0,0.00018576]
[1724136939904,0.606025,61084.0,61083.0,0.00018576]
[1724136941342,0.606025,61084.0,61083.0,0.10058576]
[1724136941343,0.1149,61084.0,61083.0,0.10058576]
[1724136941692,0.1149,61084.0,61083.0,0.26429676]
[1724136941921,0.1149,61084.0,61083.0,0.10058576]
[1724136942325,0.1169,61084.0,61083.0,0.26929676]
[1724136942587,0.1169,61084.0,61083.0,0.26429676]
[1724136942926,0.1159,61084.0,61083.0,0.27229676]
[1724136943331,0.1149,61084.0,61083.0,0.26520536]
[1724136943561,0.1159,61084.0,61083.0,0.27120536]
[1724136943784,0.1159,61084.0,61083.0,0.26520536]
[1724136943986,0.1159,61084.0,61083.0,0.10149436]
[1724136944226,0.1169,61084.0,61083.0,0.10949436]
[1724136944606,0.002,61084.0,61083.0,0.10949436]
[1724136944811,0.1169,61084.0,61083.0,0.10949436]
[1724136945297,0.1169,61084.0,61083.0,0.27320536]
[1724136945497,0.1159,61084.0,61083.0,0.26520536]
[1724136945697,0.1169,61084.0,61083.0,0.27120536]
[1724136946101,0.1159,61084.0,61083.0,0.26520536]
[1724136946362,0.1169,61084.0,61083.0,0.27320536]
[1724136946719,0.1149,61084.0,61083.0,0.26520536]
[1724136946948,0.1159,61084.0,61083.0,0.27120536]
[1724136947148,0.1159,61084.0,61083.0,0.10749436]
[1724136947353,0.1149,61084.0,61083.0,0.06689436]
[1724136947796,0.1149,61084.0,61083.0,0.23060536]
[1724136948246,0.1159,61084.0,61083.0,0.23060536]
[1724136948756,0.1149,61084.0,61083.0,0.06689436]
[1724136949168,0.1149,61084.0,61083.0,0.07289436]
[1724136949375,0.1159,61084.0,61083.0,0.23660536]
[1724136949607,0.1159,61084.0,61083.0,0.23060536]
[1724136949805,0.1169,61084.0,61083.0,0.00809436]
[1724136962059,1.57263567,61084.0,61083.0,0.00809436]
[1724136963315,1.57063567,61084.0,61083.0,0.00109436]
[1724136963685,1.651023,61084.0,61083.0,0.00109436]
[1724136963892,1.661023,61084.0,61083.0,0.00109436]
[1724136964254,1.71009811,61084.0,61083.0,0.00109436]
[1724136964462,1.70009811,61084.0,61083.0,0.00109436]
[1724136964675,1.651023,61084.0,61083.0,0.00109436]
[1724136964860,1.76317322,61084.0,61083.0,0.00109436]
[1724136965645,1.76508182,61084.0,61083.0,0.00109436]
[1724136966202,1.76510129,61084.0,61083.0,0.00109436]
[1724136966374,1.40279128,61077.0,61076.0,0.0009097]
[1724136966583,1.71498064,61077.0,61076.0,0.0009097]
[1724136966784,1.73952218,61077.0,61076.0,0.0009097]
[1724136967330,1.71495163,61077.0,61076.0,0.0009097]
[1724136967737,1.72795163,61077.0,61076.0,0.0009097]
[1724136967936,1.73895163,61077.0,61076.0,0.0019097]
[1724136968296,1.979811,61077.0,61076.0,0.0019097]
[1724136968533,1.82595163,61077.0,61076.0,0.0019097]
[1724136968738,2.15640663,61077.0,61076.0,0.0009097]
[1724136969102,1.82895163,61077.0,61076.0,0.0009097]
[1724136969446,2.13184327,61077.0,61076.0,0.0009097]
[1724136969929,1.79038827,61077.0,61076.0,0.0009097]
[1724136970135,1.751356,61077.0,61076.0,0.0009097]
[1724136970340,1.68996867,61077.0,61076.0,0.0009097]
[1724136970471,1.67996867,61077.0,61076.0,0.0009097]
[1724136970682,1.68996867,61077.0,61076.0,0.0009097]
[1724136971271,1.68796939,61077.0,61076.0,0.0009097]
[1724136971478,1.68996867,61077.0,61076.0,0.0009097]
[1724136978240,1.14711,61076.0,61075.0,0.0009097]
[1724136978440,1.55128667,61076.0,61075.0,0.0009097]
[1724136978826,1.22282667,61076.0,61075.0,0.0009097]
[1724136978985,1.33672667,61076.0,61075.0,0.0009097]
[1724136979161,1.33772667,61076.0,61075.0,0.0009097]
[1724136979856,1.35172667,61076.0,61075.0,0.0009097]
[1724136980007,1.68018667,61076.0,61075.0,0.0009097]
[1724136980224,1.68918667,61076.0,61075.0,0.0019097]
[1724136981845,1.36072667,61076.0,61075.0,0.0019097]
[1724136982049,1.36172667,61076.0,61075.0,0.0019097]
[1724136982373,1.68918667,61076.0,61075.0,0.0019097]
[1724136982782,2.01664667,61076.0,61075.0,0.0019097]
[1724136983309,1.68918667,61076.0,61075.0,0.0019097]
[1724136983890,2.01664667,61076.0,61075.0,0.0019097]
[1724136986603,1.5350218,61076.0,61075.0,0.0019097]
[1724136986807,1.6987518,61076.0,61075.0,0.0019097]
[1724136987035,2.0262118,61076.0,61075.0,0.0019097]
[1724136987437,1.6987518,61076.0,61075.0,0.0019097]
[1724136989182,1.5838518,61076.0,61075.0,0.0019097]
[1724136989388,1.6987518,61076.0,61075.0,0.0019097]
[1724136989591,1.68918667,61076.0,61075.0,0.0019097]
[1724136993950,1.15013028,61075.0,61074.0,0.0009097]
[1724136994182,1.55470767,61075.0,61074.0,0.0009097]
[1724136995320,1.55470767,61075.0,61074.0,0.0019097]
[1724136995544,1.56270767,61075.0,61074.0,0.0019097]
[1724136996051,1.57670767,61075.0,61074.0,0.0019097]
[1724136996811,1.65204472,61075.0,61074.0,0.0019097]
[1724136999318,1.82454472,61075.0,61074.0,0.0019097]
[1724136999545,1.65204472,61075.0,61074.0,0.0019097]
[1724137001734,1.97951072,61075.0,61074.0,0.0019097]
[1724137003424,1.97751144,61075.0,61074.0,0.0019097]
[1724137003652,1.97951072,61075.0,61074.0,0.0019097]
[1724137003857,2.02852117,61075.0,61074.0,0.0019097]
[1724137004536,1.97951072,61075.0,61074.0,0.0019097]
[1724137004883,1.97751144,61075.0,61074.0,0.0019097]
[1724137008463,2.07760836,61075.0,61074.0,0.0019097]
[1724137009434,2.27463277,61075.0,61074.0,0.0019097]
[1724137009553,2.10213277,61075.0,61074.0,0.0019097]
[1724137010300,2.10224165,61075.0,61074.0,0.0019097]
[1724137011342,1.97951072,61075.0,61074.0,0.0019097]
[1724137014949,1.97751144,61075.0,61074.0,0.0019097]
[1724137015185,1.97951072,61075.0,61074.0,0.0019097]
[1724137015388,1.97751144,61075.0,61074.0,0.0019097]
[1724137015802,1.97951072,61075.0,61074.0,0.0019097]
[1724137016627,1.97751144,61075.0,61074.0,0.0019097]
[1724137017117,1.97951072,61075.0,61074.0,0.0019097]
[1724137021546,1.58734472,61075.0,61074.0,0.0019097]
[1724137021687,1.70224472,61075.0,61074.0,0.0019097]
[1724137023395,1.76834472,61075.0,61074.0,0.0019097]
[1724137024844,2.09581072,61075.0,61074.0,0.0019097]
[1724137025043,1.76834472,61075.0,61074.0,0.0019097]
[1724137026976,1.76634544,61075.0,61074.0,0.0019097]
[1724137028107,1.76834472,61075.0,61074.0,0.0019097]
[1724137028838,1.76917172,61075.0,61074.0,0.0019097]
[1724137028971,1.76717244,61075.0,61074.0,0.0019097]
[1724137030345,1.76917172,61075.0,61074.0,0.0019097]
[1724137030745,1.76717244,61075.0,61074.0,0.0019097]
[1724137031418,1.76917172,61075.0,61074.0,0.0019097]
[1724137035236,2.09663772,61075.0,61074.0,0.0019097]
[1724137037171,2.25977252,61075.0,61074.0,0.0019097]
[1724137037372,2.09663772,61075.0,61074.0,0.0019097]
[1724137039076,2.09463844,61075.0,61074.0,0.0019097]
[1724137039535,2.24179336,61075.0,61074.0,0.0019097]
[1724137039675,2.09463844,61075.0,61074.0,0.0019097]
[1724137039880,2.24179468,61075.0,61074.0,0.0019097]
[1724137040080,2.09463844,61075.0,61074.0,0.0019097]
[1724137040345,2.24179669,61075.0,61074.0,0.0019097]
[1724137041384,2.24379597,61075.0,61074.0,0.0019097]
[1724137048892,2.09663772,61075.0,61074.0,0.0019097]
[1724137049354,2.24375564,61075.0,61074.0,0.0019097]
[1724137049914,2.09663772,61075.0,61074.0,0.0019097]
[1724137050317,2.24374523,61075.0,61074.0,0.0019097]
[1724137050519,2.57121123,61075.0,61074.0,0.0019097]
[1724137050726,2.09663772,61075.0,61074.0,0.0019097]
[1724137050976,2.09463844,61075.0,61074.0,0.0019097]
[1724137051629,2.09663772,61075.0,61074.0,0.0019097]
[1724137051837,0.30676428,61063.0,61062.0,0.02620565]
[1724137052037,0.99509976,61063.0,61062.0,0.02620565]
[1724137052370,1.95505526,61063.0,61062.0,0.02120565]
[1724137052964,1.95605526,61063.0,61062.0,0.004097]
[1724137053171,1.97005526,61063.0,61062.0,0.004097]
[1724137053381,2.09257728,61063.0,61062.0,0.004097]
[1724137053565,2.09257729,61063.0,61062.0,0.004097]
[1724137053900,2.07857729,61063.0,61062.0,0.004097]
[1724137054121,2.09257729,61063.0,61062.0,0.004097]
[1724137054305,1.97005526,61063.0,61062.0,0.004097]
[1724137054719,1.90795526,61063.0,61062.0,0.004097]
[1724137054921,2.01995873,61063.0,61062.0,0.004097]
[1724137055124,2.00595873,61063.0,61062.0,0.004097]
[1724137055336,1.83005526,61063.0,61062.0,0.004097]
[1724137055584,2.03245373,61063.0,61062.0,0.069297]
[1724137055936,2.03246381,61063.0,61062.0,0.069297]
[1724137056355,1.95895526,61063.0,61062.0,0.004097]
[1724137057651,2.10095526,61063.0,61062.0,0.004097]
[1724137058266,2.42848526,61063.0,61062.0,0.004097]
[1724137058681,2.41448526,61063.0,61062.0,0.004097]
[1724137059087,2.40048526,61063.0,61062.0,0.004097]
[1724137059492,2.5124887,61063.0,61062.0,0.004097]
[1724137059908,2.52483288,61063.0,61062.0,0.004097]
[1724137060084,2.5264887,61063.0,61062.0,0.004097]
[1724137060646,2.5404887,61063.0,61062.0,0.004097]
[1724137061313,2.44248526,61063.0,61062.0,0.004097]
[1724137061691,2.5404887,61063.0,61062.0,0.004097]
[1724137062098,2.53883288,61063.0,61062.0,0.004097]
[1724137062294,2.53879133,61063.0,61062.0,0.004097]
[1724137062781,2.54044715,61063.0,61062.0,0.004097]
[1724137065431,2.44248526,61063.0,61062.0,0.004097]
[1724137067443,2.32758526,61063.0,61062.0,0.004097]
[1724137067563,2.44248526,61063.0,61062.0,0.004097]
[1724137069859,2.05475526,61063.0,61062.0,0.004097]
[1724137070201,2.04640252,61063.0,61062.0,0.004097]
[1724137070417,1.85805526,61063.0,61062.0,0.004097]
[1724137070645,2.02192196,61063.0,61062.0,0.004097]
[1724137072434,2.02192466,61063.0,61062.0,0.004097]
[1724137074293,1.97295526,61063.0,61062.0,0.004097]
[1724137076736,1.97378226,61063.0,61062.0,0.004097]
[1724137077544,2.04862644,61063.0,61062.0,0.004097]
[1724137077906,2.05028226,61063.0,61062.0,0.004097]
[1724137078348,2.12375184,61063.0,61062.0,0.004097]
[1724137079296,2.18555184,61063.0,61062.0,0.004097]
[1724137080306,2.11208226,61063.0,61062.0,0.004097]
[1724137080507,2.18555184,61063.0,61062.0,0.004097]
[1724137080765,2.09927646,61063.0,61062.0,0.004097]
[1724137080967,2.05028226,61063.0,61062.0,0.004097]
[1724137081456,2.09927729,61063.0,61062.0,0.004097]
[1724137081825,2.16467729,61063.0,61062.0,0.004097]
[1724137082028,2.11568226,61063.0,61062.0,0.004097]
[1724137082426,2.18917289,61063.0,61062.0,0.004097]
[1724137083068,2.18751707,61063.0,61062.0,0.004097]
[1724137084064,2.18917289,61063.0,61062.0,0.004097]
[1724137084662,2.04727289,61063.0,61062.0,0.004097]
[1724137084865,1.14238521,61063.0,61062.0,0.067197]
[1724137085633,1.17566512,61063.0,61062.0,0.067197]
[1724137086041,1.18966512,61063.0,61062.0,0.067197]
[1724137086433,1.20366512,61063.0,61062.0,0.067197]
[1724137086641,1.28966512,61063.0,61062.0,0.067197]
[1724137087049,1.29866512,61063.0,61062.0,0.067197]
[1724137087256,1.28966512,61063.0,61062.0,0.067197]
[1724137087870,1.29866512,61063.0,61062.0,0.067197]
[1724137088086,1.28466512,61063.0,61062.0,0.067197]
[1724137088506,1.29866512,61063.0,61062.0,0.067197]
[1724137088891,1.28466512,61063.0,61062.0,0.067197]
[1724137089369,1.29866512,61063.0,61062.0,0.067197]
[1724137093981,1.29866512,61063.0,61062.0,0.004097]
[1724137095119,1.62619512,61063.0,61062.0,0.004097]
[1724137095323,1.29866512,61063.0,61062.0,0.004097]
[1724137095874,1.76799512,61063.0,61062.0,0.004097]
[1724137096889,1.76899512,61063.0,61062.0,0.004097]
[1724137099076,1.81804936,61063.0,61062.0,0.004097]
[1724137099869,1.76899512,61063.0,61062.0,0.004097]
[1724137100882,1.77895365,61063.0,61062.0,0.004097]
[1724137104817,1.76899512,61063.0,61062.0,0.004097]
[1724137105223,1.70559512,61063.0,61062.0,0.004097]
[1724137106251,1.779166,61063.0,61062.0,0.004097]
[1724137107827,1.664266,61063.0,61062.0,0.004097]
[1724137108071,1.779166,61063.0,61062.0,0.004097]
[1724137108690,1.778166,61063.0,61062.0,0.004097]
[1724137108914,1.70459512,61063.0,61062.0,0.004097]
[1724137111378,1.70559512,61063.0,61062.0,0.004097]
[1724137111585,1.841966,61063.0,61062.0,0.004097]
[1724137111761,1.86648962,61063.0,61062.0,0.004097]
[1724137112329,1.76839512,61063.0,61062.0,0.004097]
[1724137112728,1.86648834,61063.0,61062.0,0.004097]
[1724137113158,1.76839512,61063.0,61062.0,0.004097]
[1724137113428,1.66839512,61063.0,61062.0,0.004097]
[1724137115101,2.1185684,61063.0,61062.0,0.004097]
[1724137115687,2.12819419,61063.0,61062.0,0.004097]
[1724137117258,2.00555091,61063.0,61062.0,0.004097]
[1724137120168,1.98255091,61063.0,61062.0,0.004097]
[1724137120372,1.99655091,61063.0,61062.0,0.004097]
[1724137120578,2.01055091,61063.0,61062.0,0.004097]
[1724137120780,1.65598482,61057.0,61056.0,0.0001]
[1724137121005,2.05050401,61057.0,61056.0,0.0001]
[1724137122766,2.04883618,61057.0,61056.0,0.0001]
[1724137123079,2.06283618,61057.0,61056.0,0.0001]
[1724137123302,2.07683618,61057.0,61056.0,0.0001]
[1724137123922,2.078492,61057.0,61056.0,0.0001]
[1724137124357,2.00494212,61057.0,61056.0,0.0001]
[1724137124944,2.0032863,61057.0,61056.0,0.0001]
[1724137125196,2.00494212,61057.0,61056.0,0.0001]
[1724137125412,2.078492,61057.0,61056.0,0.0001]
[1724137125810,2.064492,61057.0,61056.0,0.0001]
[1724137126219,2.078492,61057.0,61056.0,0.0001]
[1724137126427,2.064492,61057.0,61056.0,0.0001]
[1724137126635,2.050492,61057.0,61056.0,0.0001]
[1724137126840,2.078492,61057.0,61056.0,0.0001]
[1724137127255,2.178492,61057.0,61056.0,0.0001]
[1724137127468,2.178492,61057.0,61051.0,0.0002]
[1724137127469,1.73060582,61052.0,61051.0,0.0002]
[1724137127687,1.96906312,61052.0,61051.0,0.0002]
[1724137127895,2.16708514,61052.0,61051.0,0.0002]
[1724137128574,2.06906312,61052.0,61051.0,0.0002]
[1724137128778,1.95416312,61052.0,61051.0,0.0002]
[1724137128985,2.06906312,61052.0,61051.0,0.0002]
[1724137129192,2.08306312,61052.0,61051.0,0.0002]
[1724137129397,2.15654352,61052.0,61051.0,0.0002]
[1724137130456,2.09706312,61052.0,61051.0,0.0002]
[1724137130669,2.17054352,61052.0,61051.0,0.0002]
[1724137131453,2.33367832,61052.0,61051.0,0.0002]
[1724137131676,2.17054352,61052.0,61051.0,0.0002]
[1724137131883,2.17051556,61052.0,61051.0,0.0002]
[1724137133464,2.09706312,61052.0,61051.0,0.0002]
[1724137134448,2.14600806,61052.0,61051.0,0.0002]
[1724137136290,2.14600806,61052.0,61051.0,0.0011097]
[1724137136641,2.14599595,61052.0,61051.0,0.0011097]
[1724137137205,2.13034013,61052.0,61051.0,0.0011097]
[1724137137658,2.14434013,61052.0,61051.0,0.0011097]
[1724137137813,2.14599595,61052.0,61051.0,0.0011097]
[1724137138017,2.13034013,61052.0,61051.0,0.0011097]
[1724137138419,2.14434013,61052.0,61051.0,0.0011097]
[1724137138579,2.13034013,61052.0,61051.0,0.0011097]
[1724137138782,2.14599595,61052.0,61051.0,0.0011097]
[1724137139188,2.13199595,61052.0,61051.0,0.0011097]
[1724137139414,2.14599595,61052.0,61051.0,0.0011097]
[1724137139614,2.13199595,61052.0,61051.0,0.0011097]
[1724137140575,2.14599595,61052.0,61051.0,0.0011097]